Cogmind - Beta 13 @@@ ROGUE MODE // 2024.04.17 @ 23:06:28 Player: sve9 Result: Destroyed by C-57 Dissector with Dual-blade Saw Performance ------------- Evolutions (9) 4500 Regions Visited (13) 2600 Robots Destroyed (62) 310 Value Destroyed (1541) 1541 Prototype IDs (42) 840 Alien Tech Used (0) 0 Bonus (949) 949 TOTAL SCORE: 10740 Bonus ------- Follower Combat Kills 149 Entered DSFs 500 Aligned with FarCom 300 Cogmind --------- Core Integrity 0/1600 Matter 260/300 Energy 99/100 System Corruption 1% Temperature Cool (0) Movement Core (50) Location -1/Access Parts ------- > --- POWER (1) -------- (None) > --- PROPULSION (8) --- (None) > --- UTILITY (14) ----- (None) > --- WEAPON (2) ------- (None) > --- INVENTORY (5) ---- Quantum Reactor Power Amplifier Advanced Weight Redist. System Improved Power Shielding Lance Peak State ------------ > --- POWER ------------ Particle Reactor > --- PROPULSION ------- Improved VTOL Module Improved VTOL Module Cooled VTOL Module Cooled Cesium-ion Thruster Cooled Cesium-ion Thruster Q-thruster Impulse Thruster Array > --- UTILITY ---------- Power Amplifier Lightpack 2.0 Machine Analyzer Advanced Signal Interpreter Advanced Terrain Scanner Improved Power Shielding Improved Medium Armor Plating Hacking Suite Improved Hacking Suite Advanced Hacking Suite Experimental Hacking Suite Improved Corruption Screen > --- WEAPON ----------- Advanced Datajack Enhanced Force Lance > --- INVENTORY -------- Quantum Reactor Light Quantum Reactor Q-thruster Q-thruster Q-thruster Power Amplifier Advanced Weight Redist. System Improved Corruption Screen Advanced Micro-nuke Launcher Improved Remote Datajack Advanced Remote Datajack Power Sword Lance [Rating: 164] Favorites ----------- Power Ion Engine Engine Ion Engine Power Core Light Fission Core Reactor Particle Reactor Propulsion Light Treads Treads Light Treads Flight Unit Improved VTOL Module Utility Hacking Suite Device Seismic Detector Storage Lightpack 2.0 Processor Machine Analyzer Hackware Hacking Suite Protection Improved Propulsion Shielding Weapon Impact Mace Energy Gun EM Pulse Gun Ballistic Gun Assault Rifle Launcher Shock Bomb Launcher Impact Weapon Impact Mace Piercing Weapon Lance Special Melee Weapon Advanced Datajack Build | -11 -10 -10 -10 -9 -8 -7 -6 -5 -4 -3 -3 -2 -1 ------- Run | Yrd Mat Min Exi Min Mat Fac Fac Fac Fac Res DSF Res Acc Slots Evolved 18 | . . . . . 4 2 2 2 2 2 . 2 2 Power . | . . . . . . . . . . . . . . Propulsion 6 | . . . . . 1 1 . . . 2 . 1 1 Utility 12 | . . . . . 3 1 2 2 2 . . 1 1 Weapon . | . . . . . . . . . . . . . . Parts Attached 105 | 7 4 2 . 4 30 5 4 11 12 8 2 10 6 Power 15 | 1 2 1 . . 4 1 . 3 2 . . 1 . Engine 9 | 1 2 1 . . 2 1 . 2 . . . . . Core 5 | . . . . . 2 . . 1 2 . . . . Reactor 1 | . . . . . . . . . . . . 1 . Propulsion 31 | 2 1 . . . 9 2 1 3 2 5 . 2 4 Treads 11 | 2 1 . . . 6 1 . . . 1 . . . Leg . | . . . . . . . . . . . . . . Wheel . | . . . . . . . . . . . . . . Hover . | . . . . . . . . . . . . . . Flight 20 | . . . . . 3 1 1 3 2 4 . 2 4 Utility 32 | 2 1 . . . 6 2 2 4 5 2 1 6 1 Device 9 | 1 . . . . 2 . 1 1 1 . 1 1 1 Storage 3 | 1 1 . . . 1 . . . . . . . . Processor 5 | . . . . . 2 . . . . 1 . 2 . Hackware 8 | . . . . . . 2 1 2 1 . . 2 . Protection 7 | . . . . . 1 . . 1 3 1 . 1 . Artifact . | . . . . . . . . . . . . . . Weapon 27 | 2 . 1 . 4 11 . 1 1 3 1 1 1 1 Energy Gun 7 | 1 . 1 . 1 4 . . . . . . . . Energy Cannon . | . . . . . . . . . . . . . . Ballistic Gun 5 | 1 . . . 2 2 . . . . . . . . Ballistic Cannon . | . . . . . . . . . . . . . . Launcher 4 | . . . . 1 2 . . . 1 . . . . Special Weapon . | . . . . . . . . . . . . . . Impact Weapon 6 | . . . . . 3 . . 1 1 1 . . . Slashing Weapon . | . . . . . . . . . . . . . . Piercing Weapon 2 | . . . . . . . . . . . . 1 1 Special Melee Weapon 3 | . . . . . . . 1 . 1 . 1 . . Unidentified Prototypes 4 | . . . . . 3 . . . . . . 1 . Parts Lost 42 | . 1 2 . . 16 1 . 4 4 . 1 3 10 Power 7 | . . 1 . . 3 1 . 1 1 . . . . Propulsion 14 | . 1 . . . 6 . . . . . 1 . 6 Utility 15 | . . . . . 4 . . 3 3 . . 2 3 Weapon 6 | . . 1 . . 3 . . . . . . 1 1 Highest Loss Streak 10 | . 1 2 . . 5 1 . 2 2 . 1 3 10 To Critical Strikes . | . . . . . . . . . . . . . . Average Slot Usage (%) 84 | . 99 99 71 100 74 78 82 80 80 79 77 79 73 Engine 8 | . 14 13 14 14 6 6 6 4 . . . . . Treads 15 | . 27 28 28 28 21 1 . . . . . . . Flight 10 | . . . . . 4 28 26 23 21 22 21 26 22 Device 9 | . 14 14 14 14 10 . 2 3 10 9 9 3 6 Storage 9 | . 14 14 14 14 9 7 6 5 5 4 4 4 3 Processor 3 | . . . . . 2 7 6 5 5 9 9 10 10 Hackware 7 | . . . . . . 10 20 22 20 14 14 14 14 Protection 1 | . . . . . . . . 4 7 8 5 6 6 Energy Gun 5 | . 14 14 . 14 8 . . . . . . . . Ballistic Gun 5 | . 14 14 . 13 4 7 . . . . . . . Impact Weapon 2 | . . . . . 4 7 6 5 4 4 4 . . Naked Turns 18 | . . . . . . . . . . . . . 18 Heaviest Build 43 | 15 30 30 26 29 29 19 20 21 23 23 23 37 43 Greatest Support 60 | 40 40 40 40 40 60 20 21 22 23 36 30 40 43 Greatest Overweight (x) 2 | 2 . . . . . 1 . 1 . . . . 1 Average Overweight (x) . | . . . . . . . . . . . . . . Largest Inventory Capacity 40 | 8 15 15 15 15 40 40 40 40 40 40 40 40 40 Average Capacity 28 | 6 14 15 15 15 39 40 40 40 40 40 40 40 30 Most Carried 24 | 4 15 15 15 15 24 17 17 16 16 16 14 16 14 Average Carried 14 | 3 12 13 14 14 18 14 14 14 14 12 13 14 10 Final Capacity 40 | 8 15 15 15 15 40 40 40 40 40 40 40 40 5 Final Carried 17 | 4 15 15 15 15 17 15 17 14 13 13 14 15 5 Class Distribution -------------------- 45% | Mutant 19% | Hauler-Sprinter 16% | Hacker-Sprinter 12% | Hauler-Mutant 5% | Hacker-Scout Dominant Class ---------------- Mutant | -10/Materials Mutant | -10/Mines Mutant | -10/Exiles Mutant | -9/Mines Hauler-Mutant | -8/Materials Hauler-Sprinter | -7/Factory Hauler-Sprinter | -6/Factory Hacker-Sprinter | -5/Factory Hacker-Sprinter | -4/Factory Hauler-Sprinter | -3/Research Hauler-Sprinter | -3/DSF Hacker-Scout | -2/Research Hacker-Scout | -1/Access Resources | -11 -10 -10 -10 -9 -8 -7 -6 -5 -4 -3 -3 -2 -1 ----------- Run | Yrd Mat Min Exi Min Mat Fac Fac Fac Fac Res DSF Res Acc Matter Collected 1635 | 245 252 49 7 94 229 95 . 67 . 262 . 332 3 Remotely . | . . . . . . . . . . . . . . Salvage Created 2620 | 15 595 88 . 18 1257 25 . . 21 272 . 329 . Parts 124 | 4 38 5 . 4 59 . . . 4 . . 10 . Haulers Intercepted 3 | . 1 . . . 2 . . . . . . . . Recyclers Shooed 3 | . 2 . . . 1 . . . . . . . . Parts Field Recycled . | . . . . . . . . . . . . . . Retrieved Matter . | . . . . . . . . . . . . . . Parts Self-Destructed . | . . . . . . . . . . . . . . Prevented . | . . . . . . . . . . . . . . Kills | -11 -10 -10 -10 -9 -8 -7 -6 -5 -4 -3 -3 -2 -1 ------- Run | Yrd Mat Min Exi Min Mat Fac Fac Fac Fac Res DSF Res Acc Combat Hostiles Destroyed 37 | . 10 2 . 3 20 . . . 2 . . . . Melee 1 | . . . . . 1 . . . . . . . . Guns 23 | . 8 2 . 1 12 . . . . . . . . AOE 9 | . 2 . . 2 3 . . . 2 . . . . Classes Destroyed 10 | 1 6 . . . 3 . . . . . . . . Worker 6 | . 4 . . . 1 1 . . . . . . . Tunneler 2 | 1 . . . . . . . . . . . 1 . Hauler 3 | . 1 . . . 2 . . . . . . . . Recycler 6 | . . . . . 2 . . . . 2 . 2 . Operator 3 | . 2 . . . 1 . . . . . . . . Watcher 5 | . 3 . . . 2 . . . . . . . . Swarmer 11 | . 3 . . 3 3 . . . 2 . . . . Grunt 23 | . 7 2 . . 14 . . . . . . . . Brawler 2 | . . . . . 2 . . . . . . . . Sentry 1 | . . . . . 1 . . . . . . . . Best Kill Streak 9 | 1 9 1 . 3 5 1 . . 2 2 . 1 . Combat Bots Only 5 | . 4 1 . 3 5 . . . 2 . . . . Max Kills in Single Turn 2 | 1 2 1 . 2 2 1 . . 2 1 . 1 . Gunslinging 1 | . . . . . 1 . . . . . . . . Exploded 2 | . 1 . . 2 2 . . . 2 . . . . Melee 1 | . . . . . 1 . . . . . . . . Uniques/NPCs Destroyed . | . . . . . . . . . . . . . . Combat | -11 -10 -10 -10 -9 -8 -7 -6 -5 -4 -3 -3 -2 -1 -------- Run | Yrd Mat Min Exi Min Mat Fac Fac Fac Fac Res DSF Res Acc Hostile Shots Fired 555 | . 44 16 . 16 141 18 . 45 66 . 37 24 148 Missed 228 | . 18 5 . 6 33 11 . 21 29 . 22 14 69 Damage Taken 6688 | . 402 168 . 83 1830 73 . 682 681 . 264 235 2270 Core 2381 | . 39 . . 9 220 16 . 142 217 . 57 51 1630 Absorbed by Shields 53 | . . . . . . . . . 43 . 10 . . Redirected to Shielding 182 | . . . . . . . . 70 42 . 31 28 11 Ignored by Resistances 24 | . . . . . . . . . 24 . . . . Core Remaining (%) 88 | 100 . . . 80 60 97 100 85 81 . 95 96 . Volleys Fired 133 | 1 59 12 . 4 56 . . . 1 . . . . Largest 2 | 2 2 2 . 2 2 . . . 1 . . . . Hottest 108 | 60 60 70 . 80 108 . . . 46 . . . . Shots Fired 233 | 2 99 24 . 9 98 . . . 1 . . . . Gun 228 | 2 99 24 . 7 96 . . . . . . . . Cannon . | . . . . . . . . . . . . . . Launcher 5 | . . . . 2 2 . . . 1 . . . . Special . | . . . . . . . . . . . . . . Kinetic 98 | 1 60 12 . 3 22 . . . . . . . . Thermal 48 | . . 11 . 4 33 . . . . . . . . Explosive 3 | . . . . 2 . . . . 1 . . . . Electromagnetic 84 | 1 39 1 . . 43 . . . . . . . . Robot Hit Streak 14 | 1 9 5 . 3 14 . . . 1 . . . . Robot Miss Streak 4 | . 4 1 . 1 3 . . . . . . . . Penetration Max . | . . . . . . . . . . . . . . Secondary Targets 6 | . 2 1 . . 3 . . . . . . . . Max Gunslinging Chain 1 | . 1 1 . . 1 . . . . . . . . Shots Hit Robots 185 | 1 56 17 . 5 95 1 2 1 1 2 1 3 . Core Hits 88 | 1 30 4 . 5 45 . . . 2 . . 1 . Critical Kills 2 | . . . . . 2 . . . . . . . . Critical Parts Destroyed 4 | . . . . . 3 1 . . . . . . . Critical Strikes 11 | . . . . . 9 1 . . . . . 1 . Burn 4 | . . . . . 4 . . . . . . . . Destroy 1 | . . . . . 1 . . . . . . . . Smash 5 | . . . . . 4 1 . . . . . . . Impale 1 | . . . . . . . . . . . . 1 . Melee Attacks 195 | . . . . . 27 7 23 44 33 12 1 27 21 Impact 150 | . . . . . 27 7 21 44 33 12 . 6 . Slashing . | . . . . . . . . . . . . . . Piercing 42 | . . . . . . . . . . . . 21 21 Sneak Attacks 9 | . . . . . 2 1 . 1 . 2 . 3 . Combat Hostiles . | . . . . . . . . . . . . . . Follow-up Attacks . | . . . . . . . . . . . . . . Damage Inflicted 4984 | 24 979 215 . 166 2472 96 . 99 344 252 . 337 . Guns 2312 | 24 820 215 . 38 1215 . . . . . . . . Cannons . | . . . . . . . . . . . . . . Explosions 1190 | . 159 . . 128 559 . . . 344 . . . . Melee 1482 | . . . . . 698 96 . 99 . 252 . 337 . Ramming . | . . . . . . . . . . . . . . Kinetic 679 | 11 400 113 . 14 141 . . . . . . . . Thermal 1103 | . 159 87 . 24 833 . . . . . . . . Explosive 472 | . . . . 128 . . . . 344 . . . . Electromagnetic 1248 | 13 420 15 . . 800 . . . . . . . . Impact 1289 | . . . . . 698 96 . 99 . 252 . 144 . Slashing . | . . . . . . . . . . . . . . Piercing 193 | . . . . . . . . . . . . 193 . Highest Corruption 3 | . 3 3 3 3 1 . . 1 . . . . 1 Average Corruption 2 | . 2 3 3 3 1 . . 1 . . . . 1 Corruption Purged . | . . . . . . . . . . . . . . Corruption Blocked 4 | . . . . . . . . . . . . 2 2 Effects 45 | . 17 1 14 9 2 . . 2 . . . . . Message Errors 13 | . 3 1 6 2 1 . . . . . . . . Matter Fused 8 | . 2 . 1 3 . . . 2 . . . . . Heat Flow Errors 6 | . 1 . 4 1 . . . . . . . . . Energy Discharges 4 | . 2 . 1 1 . . . . . . . . . Data Loss (minor) 7 | . 4 . 2 . 1 . . . . . . . . Data Loss (major) 4 | . 3 . . 1 . . . . . . . . . Misfires 3 | . 2 . . 1 . . . . . . . . . Overload Shots . | . . . . . . . . . . . . . . Overflow Damage 691 | . 6 . . 4 146 96 . . 23 152 . 264 . Projectiles 32 | . . . . . . . . . . . . 32 . Explosions 33 | . 6 . . 4 . . . . 23 . . . . Melee 626 | . . . . . 146 96 . . . 152 . 232 . Knockbacks 6 | . . . . . 1 . . 1 . 2 . 2 . Impact 5 | . . . . . 1 . . 1 . 2 . 1 . Kinetic . | . . . . . . . . . . . . . . Secondary 1 | . . . . . . . . . . . . 1 . Self-Inflicted Damage 223 | . 94 . . . 129 . . . . . . . . Shots 6 | . 2 . . . 4 . . . . . . . . Rammed . | . . . . . . . . . . . . . . Targets Rammed . | . . . . . . . . . . . . . . Kicked . | . . . . . . . . . . . . . . Crushed . | . . . . . . . . . . . . . . Highest Temperature 257 | . 233 155 257 98 138 . . . . . . 30 3 Average Temperature 47 | . 36 72 92 29 34 . . . . . . 15 3 Received Heat Transfer 1386 | . 150 99 . . 1017 12 . 9 72 . . . 27 Siege Activations . | . . . . . . . . . . . . . . Robots Corrupted 3 | . . . . . 3 . . . . . . . . Combat Hostiles 3 | . . . . . 3 . . . . . . . . Parts Fried 15 | . 3 . . . 5 . . . . 4 . 3 . Impact Corruptions 16 | . . . . . 6 1 . . . 4 . 5 . Robots Melted . | . . . . . . . . . . . . . . Combat Hostiles . | . . . . . . . . . . . . . . Parts Melted 5 | . 1 . . . 4 . . . . . . . . Heat Transferred 2439 | . 250 259 . 74 1856 . . . . . . . . Parts Sabotaged . | . . . . . . . . . . . . . . Parts Stolen . | . . . . . . . . . . . . . . Parts Stripped . | . . . . . . . . . . . . . . Power Chain Reactions 7 | . 2 . . . 5 . . . . . . . . Alert | -11 -10 -10 -10 -9 -8 -7 -6 -5 -4 -3 -3 -2 -1 ------- Run | Yrd Mat Min Exi Min Mat Fac Fac Fac Fac Res DSF Res Acc Peak Influence 489 | 5 248 31 . 116 378 337 216 222 470 284 218 459 489 Initial 213 | . 3 1 . . 44 143 164 7 9 171 213 122 208 Average 138 | 1 82 25 . 55 191 228 179 70 160 214 211 309 287 Maximum Alert Level 2 | . 1 . . . 1 1 1 1 2 1 1 2 2 Low Security (%) 69 | 100 86 100 . 100 53 38 67 99 59 19 . 22 . Level 1 29 | . 13 . . . 46 61 32 . 29 80 100 66 91 Level 2 1 | . . . . . . . . . 11 . . 10 8 Level 3 . | . . . . . . . . . . . . . . Level 4 . | . . . . . . . . . . . . . . Level 5 . | . . . . . . . . . . . . . . High Security . | . . . . . . . . . . . . . . Max Security . | . . . . . . . . . . . . . . Squads Dispatched 31 | . 3 . . . 3 4 2 4 4 . 3 3 5 Investigation 13 | . 1 . . . 1 4 1 3 1 . . 1 1 Extermination 3 | . . . . . . . . 1 1 . . 1 . Reinforcement 15 | . 2 . . . 2 . 1 . 2 . 3 1 4 Assault . | . . . . . . . . . . . . . . Garrison . | . . . . . . . . . . . . . . Intercept . | . . . . . . . . . . . . . . Searches Triggered 1 | . . . . . . . . . . . . 1 . Construction Impeded . | . . . . . . . . . . . . . . Haulers Reinforced . | . . . . . . . . . . . . . . Active Scanning Responses . | . . . . . . . . . . . . . . Cargo Convoy Interrupts . | . . . . . . . . . . . . . . Stealth | -11 -10 -10 -10 -9 -8 -7 -6 -5 -4 -3 -3 -2 -1 --------- Run | Yrd Mat Min Exi Min Mat Fac Fac Fac Fac Res DSF Res Acc Distress Signals 10 | . 1 . . . 5 . . . . 1 . 2 1 Communications Jammed . | . . . . . . . . . . . . . . Distress Signals . | . . . . . . . . . . . . . . Times Spotted 212 | . 26 1 . 8 37 8 1 26 37 4 15 18 31 Peak Tracking Total 16 | . 8 1 . 4 6 4 1 9 10 2 13 11 16 Tactical Retreats 33 | . 1 . . . 3 5 . 4 9 1 1 4 5 Traps | -11 -10 -10 -10 -9 -8 -7 -6 -5 -4 -3 -3 -2 -1 ------- Run | Yrd Mat Min Exi Min Mat Fac Fac Fac Fac Res DSF Res Acc Traps Triggered 14 | . 2 . . . 2 1 . 1 2 2 2 1 1 Indirectly 1 | . . . . . 1 . . . . . . . . Trap Hack Attempts . | . . . . . . . . . . . . . . Triggered . | . . . . . . . . . . . . . . Disarmed . | . . . . . . . . . . . . . . Reprogrammed 6 | . . . . . . . . 6 . . . . . Reused 1 | . . . . . . . . 1 . . . . . Traps Extracted . | . . . . . . . . . . . . . . Installed . | . . . . . . . . . . . . . . Triggered 1 | . . . . . . . . 1 . . . . . Machines | -11 -10 -10 -10 -9 -8 -7 -6 -5 -4 -3 -3 -2 -1 ---------- Run | Yrd Mat Min Exi Min Mat Fac Fac Fac Fac Res DSF Res Acc Machines Disabled 5 | . 2 . . . 3 . . . . . . . . Max in Single Turn 1 | . 1 . . . 1 . . . . . . . . Machines Repaired . | . . . . . . . . . . . . . . Machines Dismantled . | . . . . . . . . . . . . . . Machines Sabotaged . | . . . . . . . . . . . . . . Overloaded Fab Kills . | . . . . . . . . . . . . . . Hacking | -11 -10 -10 -10 -9 -8 -7 -6 -5 -4 -3 -3 -2 -1 --------- Run | Yrd Mat Min Exi Min Mat Fac Fac Fac Fac Res DSF Res Acc Machines Accessed 58 | . 5 . 1 . 6 9 9 10 4 6 . 7 1 Terminals 45 | . 5 . . . 6 7 8 6 3 5 . 5 . Fabricators 7 | . . . . . . 2 1 3 1 . . . . Repair Stations . | . . . . . . . . . . . . . . Recycling Units 1 | . . . . . . . . . . . . . 1 Scanalyzers 3 | . . . . . . . . 1 . 1 . 1 . Garrison Access 1 | . . . . . . . . . . . . 1 . Total Hacks 166 | . 17 . 1 . 23 25 20 44 13 11 . 10 2 Successful 96 | . 13 . 1 . 5 12 14 32 6 6 . 6 1 Failed 70 | . 4 . . . 18 13 6 12 7 5 . 4 1 Catastrophic 12 | . 2 . . . 3 1 2 . 1 2 . 1 . Database Lockouts . | . . . . . . . . . . . . . . Manual 74 | . 5 . 1 . 17 7 10 12 10 7 . 5 . Terminals 134 | . 17 . . . 23 18 18 29 11 10 . 8 . Fabricators 18 | . . . . . . 7 2 7 2 . . . . Repair Stations . | . . . . . . . . . . . . . . Recycling Units 2 | . . . . . . . . . . . . . 2 Scanalyzers 10 | . . . . . . . . 8 . 1 . 1 . Garrison Access 1 | . . . . . . . . . . . . 1 . Terminal Hacks 52 | . 9 . 1 . 3 6 9 15 3 2 . 4 . Record 6 | . 4 . . . . . 2 . . . . . . Part Schematic 3 | . . . . . 1 1 . 1 . . . . . Robot Schematic 3 | . . . . . . . . 2 . . . 1 . Prototype ID Bank 7 | . 2 . . . 1 1 2 1 . . . . . Open DSF 3 | . . . . . . 1 1 . . 1 . . . Level Access Points 4 | . . . . . . . 1 1 1 . . 1 . Branch Access Points 4 | . 1 . . . . . 1 . . . . 2 . Machine Index 1 | . . . . . . . 1 . . . . . . Terminal Index 4 | . . . . . . 1 1 1 1 . . . . Locate Traps 2 | . . . . . . . . 1 . 1 . . . Reprogram Traps 1 | . . . . . . . . 1 . . . . . Dispatch Records 1 | . . . . . . 1 . . . . . . . Security Status 1 | . . . . . . . . 1 . . . . . Patrol Status 1 | . . . . . . . . 1 . . . . . Investigation Status 1 | . . . . . . . . 1 . . . . . Recall Investigation 6 | . . . . . 1 1 . 3 1 . . . . Hauler Manifests 1 | . 1 . . . . . . . . . . . . Registered Prototypes 1 | . . . . . . . . 1 . . . . . Zone Layout 1 | . 1 . . . . . . . . . . . . Derelict Proto ID Bank 1 | . . . 1 . . . . . . . . . . Fabricator Hacks 14 | . . . . . . 4 2 6 2 . . . . Load Schematic 7 | . . . . . . 2 1 3 1 . . . . Build 7 | . . . . . . 2 1 3 1 . . . . Repair Station Hacks . | . . . . . . . . . . . . . . Recycling Unit Hacks 1 | . . . . . . . . . . . . . 1 Retrieve Components 1 | . . . . . . . . . . . . . 1 Scanalyzer 10 | . . . . . . . . 8 . 1 . 1 . Insert Component 5 | . . . . . . . . 3 . 1 . 1 . Analyze 5 | . . . . . . . . 5 . . . . . Garrison Access Hacks 1 | . . . . . . . . . . . . 1 . Unlock Access 1 | . . . . . . . . . . . . 1 . Unauthorized Hacks 18 | . 4 . . . 2 2 3 3 1 3 . . . Terminals 18 | . 4 . . . 2 2 3 3 1 3 . . . Track 1 | . 1 . . . . . . . . . . . . Assimilate 1 | . . . . . . . 1 . . . . . . Botnet 15 | . 2 . . . 2 2 2 3 1 3 . . . Operators 1 | . 1 . . . . . . . . . . . . Fabricators . | . . . . . . . . . . . . . . Repair Stations . | . . . . . . . . . . . . . . Recycling Units . | . . . . . . . . . . . . . . Scanalyzers . | . . . . . . . . . . . . . . Garrison Access . | . . . . . . . . . . . . . . Data Cores Recovered . | . . . . . . . . . . . . . . Used . | . . . . . . . . . . . . . . Hacking Detections 50 | . 3 . . . 5 8 8 9 4 6 . 6 1 Full Trace Events 9 | . . . . . . 4 1 3 1 . . . . Feedback Events . | . . . . . . . . . . . . . . Feedback Blocked . | . . . . . . . . . . . . . . Robot Schematics Acquired 3 | . . . . . . . . 2 . . . 1 . Robots Built . | . . . . . . . . . . . . . . Authchips . | . . . . . . . . . . . . . . Time . | . . . . . . . . . . . . . . Total Robot Build Rating . | . . . . . . . . . . . . . . Part Schematics Acquired 4 | . . . . . 1 1 . 2 . . . . . Parts Built 7 | . . . . . . 3 . 3 1 . . . . Authchips . | . . . . . . . . . . . . . . Time 452 | . . . . . . 83 73 249 47 . . . . Total Part Build Rating 33 | . . . . . . 13 . 15 5 . . . . Parts Repaired . | . . . . . . . . . . . . . . Time . | . . . . . . . . . . . . . . Parts Recycled . | . . . . . . . . . . . . . . Recycled Matter . | . . . . . . . . . . . . . . Retrieved Matter . | . . . . . . . . . . . . . . Retrieved Components 1 | . . . . . . . . . . . . . 1 Parts Scanalyzed 1 | . . . . . . . . 1 . . . . . Part Schematics Acquired 1 | . . . . . . . . 1 . . . . . Parts Damaged . | . . . . . . . . . . . . . . Bothacking | -11 -10 -10 -10 -9 -8 -7 -6 -5 -4 -3 -3 -2 -1 ------------ Run | Yrd Mat Min Exi Min Mat Fac Fac Fac Fac Res DSF Res Acc Used RIF Installer . | . . . . . . . . . . . . . . Robots Hacked 2 | . . . . . . . 1 . . . 1 . . Non-combat 1 | . . . . . . . 1 . . . . . . Combat 1 | . . . . . . . . . . . 1 . . Robot Hacks Applied 2 | . . . . . . . 1 . . . 1 . . parse_system 2 | . . . . . . . 1 . . . 1 . . Relay Couplers Released . | . . . . . . . . . . . . . . Fabnet Peak Effective % . | . . . . . . . . . . . . . . Robots Rewired . | . . . . . . . . . . . . . . Allies Hacked . | . . . . . . . . . . . . . . Hacks Repelled . | . . . . . . . . . . . . . . Allies | -11 -10 -10 -10 -9 -8 -7 -6 -5 -4 -3 -3 -2 -1 -------- Run | Yrd Mat Min Exi Min Mat Fac Fac Fac Fac Res DSF Res Acc Total Allies 6 | . . . . 3 . . . 3 . . . . . Largest Group 3 | . . . . 3 2 . . 2 . . . . . Highest-Rated Group 57 | . . . . 40 32 . . 57 . . . . . Highest-Rated Ally 31 | . . . . 16 16 . . 31 . . . . . Total Orders . | . . . . . . . . . . . . . . Ally Attacks 58 | . . . . 25 25 . . 8 . . . . . Total Damage 689 | . . . . 178 340 . . 171 . . . . . Kills 7 | . . . . 5 2 . . . . . . . . Allies Corrupted . | . . . . . . . . . . . . . . Allies Melted . | . . . . . . . . . . . . . . Intel | -11 -10 -10 -10 -9 -8 -7 -6 -5 -4 -3 -3 -2 -1 ------- Run | Yrd Mat Min Exi Min Mat Fac Fac Fac Fac Res DSF Res Acc Robot Analysis Total . | . . . . . . . . . . . . . . Derelict Logs Recovered . | . . . . . . . . . . . . . . Drone Launches . | . . . . . . . . . . . . . . Drone Recoveries . | . . . . . . . . . . . . . . Exploration | -11 -10 -10 -10 -9 -8 -7 -6 -5 -4 -3 -3 -2 -1 ------------- Run | Yrd Mat Min Exi Min Mat Fac Fac Fac Fac Res DSF Res Acc Turns Passed 6855 | 84 1526 155 657 610 984 344 418 813 430 198 38 315 283 Spaces Moved 9035 | 46 792 72 409 349 541 800 1003 1676 1013 482 116 918 818 Core 89 | 6 . . . . . . . . . . . . 83 Treads 1944 | 40 792 72 409 349 282 . . . . . . . . Legs . | . . . . . . . . . . . . . . Wheels . | . . . . . . . . . . . . . . Hover . | . . . . . . . . . . . . . . Flight 7002 | . . . . . 259 800 1003 1676 1013 482 116 918 735 Fastest Speed 20 | 50 160 160 160 160 30 28 27 26 26 24 26 20 20 Average Speed 55 | 147 160 160 160 160 97 31 27 26 26 25 26 20 24 Slowest Speed 160 | 160 160 160 160 160 160 103 28 101 26 30 27 40 100 Overloaded Moves 48 | . . . . . . . . . . . . . 48 Propulsion Burnouts . | . . . . . . . . . . . . . . Robots Hopped . | . . . . . . . . . . . . . . Cave-ins Triggered 1 | . . . . . . . . 1 . . . . . Exploration Rate (%) 39 | 3 82 15 90 71 46 21 19 30 27 11 81 26 25 Regions Visited 13 Branch Regions 3 Pre-discovered Areas . | . . . . . . . . . . . . . . Known Exits Taken 6 | . 1 . . . . . 1 1 1 1 . 1 . Unknown Exits Taken 6 | 1 . 1 1 1 1 1 . . . . . . . Scrap Searched 2 | . . . . 2 . . . . . . . . . Spaces Dug 157 | . . . . . 7 6 20 41 33 9 . 24 17 Terrain Destroyed 198 | . 9 . . 9 21 6 20 41 42 9 . 24 17 Melee 157 | . . . . . 7 6 20 41 33 9 . 24 17 Projectile . | . . . . . . . . . . . . . . AOE 41 | . 9 . . 9 14 . . . 9 . . . . Terrain Rammed . | . . . . . . . . . . . . . . Walls Destroyed . | . . . . . . . . . . . . . . Machines Disabled . | . . . . . . . . . . . . . . Actions | -11 -10 -10 -10 -9 -8 -7 -6 -5 -4 -3 -3 -2 -1 --------- Run | Yrd Mat Min Exi Min Mat Fac Fac Fac Fac Res DSF Res Acc Total 10348 | 57 953 89 414 393 851 881 1108 1968 1121 532 122 1000 859 Wait 676 | . 88 . . 33 166 49 60 215 22 3 . 31 9 Move 9022 | 45 791 71 408 348 540 799 1002 1675 1012 481 115 917 818 Hop . | . . . . . . . . . . . . . . Pick Up 103 | 4 10 1 2 3 26 11 11 11 7 6 2 9 . Fast Attach 31 | 7 . . . . 5 3 1 2 1 5 1 4 2 Attach 53 | . 1 2 . 2 18 2 2 5 9 3 1 5 3 Detach 12 | . . 2 . . 2 . . 1 4 1 . 1 1 Swap 21 | . 3 . . 2 7 . 1 4 2 . . 1 1 Drop 54 | . 1 1 4 1 4 10 8 11 2 3 . 5 4 Fire 133 | 1 59 12 . 4 56 . . . 1 . . . . Melee 195 | . . . . . 27 7 23 44 33 12 1 27 21 Ram . | . . . . . . . . . . . . . . Kick . | . . . . . . . . . . . . . . Crush . | . . . . . . . . . . . . . . Escape Stasis 48 | . . . . . . . . . 28 18 2 . . Rewire . | . . . . . . . . . . . . . . Trap . | . . . . . . . . . . . . . . Miscellaneous . | . . . . . . . . . . . . . . Route ------- -11/Scrapyard -10/Materials (discovered 2 exits: [*Mat] / *Min) -10/Mines -10/Exiles (discovered 2 exits: [*Min x2]) -9/Mines -8/Materials -7/Factory -6/Factory (discovered 8 exits: *Fac x4 / Low x2 / *Ext x2) -5/Factory (discovered 4 exits: *Fac x4) -4/Factory (discovered 4 exits: *Res x4) -3/Research -3/DSF -2/Research (discovered 6 exits: *Acc x3 / Tes x2 / Gar) -1/Access History --------- Turn | Location | Event 11 | -11/Scrapyard | Discovered new exit (range 15) 85 | -11/Scrapyard | Entered Materials 304 | -10/Materials | Build established: Mutant 477 | -10/Materials | Discovered new exit (range 14) 801 | -10/Materials | Identified exit to Mines 1498 | -10/Materials | Discovered new exit (range 16) 1611 | -10/Materials | Entered Mines 1612 | -10/Mines | Assembled infested the area 1734 | -10/Mines | Deemed a non-threat by the Exiles lab entrance 1734 | -10/Mines | Discovered new exit (range 5) 1766 | -10/Mines | Entered Exiles 1789 | -10/Exiles | Discovered new exit (range 15) 1824 | -10/Exiles | Met 8R-AWN 1851 | -10/Exiles | Met EX-HEX 1902 | -10/Exiles | Met EX-BIN 1925 | -10/Exiles | Aligned with FarCom system 1926 | -10/Exiles | Given EX-Vault access code 1978 | -10/Exiles | Opened EX-Vault 1990 | -10/Exiles | Found Lightpack 2.0 2023 | -10/Exiles | Warned to stay clear of 0b10 Research branches 2067 | -10/Exiles | Met EX-DEC 2165 | -10/Exiles | Visited The Gauntlet 2406 | -10/Exiles | Discovered new exit (range 14) 2423 | -10/Exiles | Left Exiles lab with Lightpack 2.0 2423 | -10/Exiles | Entered Mines 2430 | -9/Mines | Assisted by bots powering up and referring to "LRC-V3" 2944 | -9/Mines | Found a hidden stash of uninstalled traps 2980 | -9/Mines | Discovered new exit (range 10) 3033 | -9/Mines | Entered Materials 3033 | -8/Materials | Accompanied by 2 allies 3033 | -8/Materials | Evolved 4 slots: Propulsion x1, Utility x3 3363 | -8/Materials | Build established: Hauler-Mutant 3382 | -8/Materials | Lost 5 parts (1p2n1u1w) 3811 | -8/Materials | Lost 5 parts (1p1n1u2w) 4002 | -8/Materials | Discovered new exit (range 16) 4017 | -8/Materials | Entered Factory 4017 | -7/Factory | Evolved 2 slots: Propulsion x1, Utility x1 4157 | -7/Factory | Discovered new exit (range 4) 4260 | -7/Factory | Fabricated Nuclear Pulse Thruster (x2) 4302 | -7/Factory | Fabricated Hacking Suite (x1) 4361 | -7/Factory | Entered another Factory area 4361 | -6/Factory | Evolved 2 slots: Utility x2 4399 | -6/Factory | Build established: Hauler-Sprinter 4555 | -6/Factory | Identified exit to DSF 4573 | -6/Factory | Identified exit to Lower Caves 4573 | -6/Factory | Identified exit to Extension 4573 | -6/Factory | Identified exit to Factory 4779 | -6/Factory | Entered another Factory area 4779 | -5/Factory | Evolved 2 slots: Utility x2 4846 | -5/Factory | Identified exit to Factory 5086 | -5/Factory | Build established: Hacker-Sprinter 5182 | -5/Factory | Fabricated Cld. Cesium-ion Thruster? 5207 | -5/Factory | Fabricated Cld. Cesium-ion Thruster? 5351 | -5/Factory | Crushed by falling debris 5488 | -5/Factory | Lost 3 allies 5536 | -5/Factory | Fabricated Imp. Hacking Suite? 5592 | -5/Factory | Entered another Factory area 5592 | -4/Factory | Evolved 2 slots: Utility x2 5920 | -4/Factory | Fabricated Imp. Hacking Suite? 5942 | -4/Factory | Identified exit to Research 6022 | -4/Factory | Entered Research 6022 | -3/Research | Evolved 2 slots: Propulsion x2 6069 | -3/Research | Found Prototype Launcher 6072 | -3/Research | Found Prototype Launcher 6138 | -3/Research | Identified Adv. Micro-nuke Launcher (x2) 6217 | -3/Research | Identified exit to DSF 6220 | -3/Research | Entered DSF 6230 | -3/DSF | Assembled infested the area 6238 | -3/DSF | Additional patrols routed to DSF 6253 | -3/DSF | Discovered new exit (range 15) 6258 | -3/DSF | Entered Research 6258 | -2/Research | Evolved 2 slots: Propulsion x1, Utility x1 6299 | -2/Research | Build established: Hauler-Sprinter 6329 | -2/Research | Identified exit to Garrison 6348 | -2/Research | Identified exit to Testing 6358 | -2/Research | Lost 3 parts (2u1w) 6411 | -2/Research | Found Enh. Force Lance 6423 | -2/Research | Found Prototype Hackware 6423 | -2/Research | Identified Exp. Hacking Suite 6533 | -2/Research | Search patrols dispatched 6551 | -2/Research | Identified exit to Access 6573 | -2/Research | Entered Access 6573 | -1/Access | Evolved 2 slots: Propulsion x1, Utility x1 6715 | -1/Access | Build established: Hacker-Scout 6817 | -1/Access | Spotted B-99 Colossus 6830 | -1/Access | Core integrity fell below 50% 6843 | -1/Access | Core integrity fell below 20% 6856 | -1/Access | Lost 10 parts (6n3u1w) 6856 | -1/Access | Destroyed by C-57 Dissector with Dual-blade Saw Last Messages --------------- 06822_ Penetrated by Slug. 06822_ Slug penetrates Recycling Unit. 06825_ Penetrated by Slug. 06825_ Slug penetrates Wall. 06825_ Penetrated by Slug. 06825_ Imp. Hacking Suite destroyed. 06825_ Penetrated by Slug. 06825_ Slug penetrates Wall. 06829_ Penetrated by Slug. 06830_ Acquired 3 matter. 06832_ Penetrated by Slug. 06834_ Hacking Suite severed. 06835_ Machine Analyzer severed. 06837_ Adv. Hacking Suite severed. 06838_ Adv. Signal Interpreter severed. 06847_ ALERT: Suspicious intruders detected, dispatching Cutter reinforcements to area. 06855_ Knocked back. [Achievement: 5k Club] [Achievement: 10k Club] Map ----- +----------------------------------------------------+ | #########????????????????????????????????????????? | | #????????????????????????????????????????????????? | | #???????????????? #??????????????????????????????? | | #########?????? #??????????????????????????????? | | #????!! #??????????????????????????????? | | #?? !! #??????????????????????????????? | | ##+### # ! #??????????????????????????????? | | ?????# + #??????????????????????????????? | | ?????# # #??????????????????????????????? | | ?????# #?? #???????????????????"""""??????? | | ?????# ###########???????????????????"""""??????? | | ?????# #??????????????????????""?F"??????? | | ?????+ #?????????????????????????????????? | | ?????#+###### #?????????????????????????????????? | | ????????????# #?????????????????????????????????? | | ????????????# #?????????????????????????????????? | | ???????"????# #?????????????????????????????????? | | ??????"""???# #??????########???????????????????? | | ?????"""????# #??????# #???????????????????? | | ??????"?????# s#??????# [ #???????????????????? | | ????????????# #??????# #???????????????????? | | ????????????# #??????# #???????????????????? | | ????????????# #??????# = +???????????????????? | | ????????????# #???#### #???????????????????? | | #???????????# #####"## #???????????????????? | | ????????????# ss s # @ #???????????????????? | | ????????????# ss c # c #???????????????????? | | ????????????########c # #???????????????????? | | ???????????????????# + #???????????????????? | | ???????????????????# H# #???????????????????? | | ???????????????????# p# % #???????????????????? | | ???????????????????# ########???????????????????? | | ??????????????????? ??????????????????????????? | | ??????????????h?h? p"" ??????????????????????????? | | ????????????h??w? T" ??????????????????????????? | | ????????????????### w #?????????????????????????? | | ??????????????????##+###?????????????????????????? | | ?????????????????????????????????????????????????? | | ?????????????????????????????????????????????????? | | ?????????????????????????????????????????????????? | | ?????????????????????????????????????????????????? | | ?????????????????????????????????????????????????? | | ?????????????????????????????????????????????????? | | ?????????????????????????????????????????????????? | | ?????????????????????????????????????????????????? | | ?????????????????????????????????????????????????? | | ?????????????????????????????????????????????????? | | ?????????????????????????????????????????????????? | | ?????????????????????????????????????????????????? | | ?????????????????????????????????????????????????? | +----------------------------------------------------+ Best States ------------- Heat Dissipation 59 Energy Generation 35 Energy Capacity 800 Matter Stores 300 Matter Capacity 300 Sight Range 16 Terrain Scan Range 20 Terrain Scan Density 10 Cloak Strength 2 Power Amplification 20 Corruption Block 15 Armor Coverage 225 Resistance: TH 10 Power Shielding 66 Propulsion Shielding 66 Evasion (%) 66 Targeting Accuracy 5 Recoil Reduction 3 Offensive Hacking 52 Authchip Count 2 Item Schematics ----------------- VTOL Module | -8/Materials | Hacked Hacking Suite | -7/Factory | Hacked Cld. Cesium-ion Thruster | -5/Factory | Scanalyzed Imp. Hacking Suite | -5/Factory | Hacked Robot Schematics ------------------ A-15 Conveyor | -5/Factory | Hacked R-06 Scavenger | -5/Factory | Hacked A-02 Transporter | -2/Research | Hacked Fabricated ------------ Nuclear Pulse Thruster | x2 | -7/Factory | Preloaded Hacking Suite | x1 | -7/Factory Cld. Cesium-ion Thruster | x1 | -5/Factory Cld. Cesium-ion Thruster | x1 | -5/Factory Imp. Hacking Suite | x1 | -5/Factory Imp. Hacking Suite | x1 | -4/Factory Alien Tech Used ----------------- None Achievements -------------- 10k Club 5k Club Can't Catch Me Dangerous Findings Denied? GoHome() One Hack Too Far Part-time Excavator Party Time Power Corrupts Respectable Loadout Rockin' Loadout Safety First Slippery One Unlikely Earthworm Challenges ------------ None Game ------ Seed MiningEnhancedStorage Manual? 0 Play Time 02:47:31 Cumulative 4.1 hours Start 2024.04.17 @ 20:09:49 End 2024.04.17 @ 23:06:28 Sessions 1 Manual Loads 0 Difficulty Rogue Special Mode None Game No. 4 Rogue 4 Adventurer 0 Explorer 0 Win Type - Total 0 Types 0/0/0/0/0/0/0/0/0 Lore% 9 Gallery% 9 Achievement% 11 Wizard Run 0 Options --------- Layout 1 ASCII 0 Keyboard 0 Movement Vi Keybinds 0 Fullscreen 1 Font 18/SmallcapsGlow Map View 54x44 Zoom Use 0% Tactical HUD 1 Map Filters NONE Filters NONE Steam 0 RUN: 76cb3e91-f9a5-4ed6-a1bf-7b798831a9b1